bitfinex/quotes_ETHUSD_20250813
["timestamp","ask_amount","ask_price","bid_price","bid_amount"]
[1755106833940,19.81295568,4707.5,4707.4,8.389]
[1755106834239,17.6064,4707.5,4707.4,8.389]
[1755106834456,18.0599,4707.5,4707.4,8.389]
[1755106834640,18.0599,4707.5,4707.4,5.09]
[1755106834844,18.0599,4707.5,4707.4,8.388]
[1755106835267,17.6064,4707.5,4707.4,8.388]
[1755106835468,19.36704,4707.5,4707.4,8.388]
[1755106836045,19.82054,4707.5,4707.4,8.388]
[1755106837381,21.03494,4707.5,4707.4,5.09]
[1755106837676,21.03494,4707.5,4707.4,8.388]
[1755106838675,21.03494,4707.5,4707.4,5.09]
[1755106838881,5.75655568,4707.4,4707.3,0.001]
[1755106839173,6.87445568,4707.4,4707.3,5.091]
[1755106839379,6.87445568,4707.4,4707.1,0.02]
[1755106839565,18.1564,4707.2,4707.1,0.02]
[1755106839874,18.1564,4707.2,4707.1,3.318]
[1755106840077,3.55,4707.1,4705.3,0.6717]
[1755106840381,0.1064,4706.5,4705.3,0.6717]
[1755106840575,0.6564,4706.5,4705.1,0.02]
[1755106840776,19.2743,4706.5,4705.1,0.02]
[1755106840980,19.2743,4706.5,4705.3,0.6717]
[1755106841178,18.5035,4706.5,4705.3,0.6717]
[1755106841380,21.12465,4706.5,4706.4,3.35224417]
[1755106841583,21.12465,4706.5,4706.4,8.44324417]
[1755106842150,21.12465,4706.5,4706.4,5.091]
[1755106842762,3.55,4706.4,4705.1,0.02]
[1755106842956,1.6679,4706.4,4706.2,5.091]
[1755106843250,0.55,4706.0,4705.1,0.02]
[1755106843452,18.05,4705.5,4705.1,0.02]
[1755106843660,18.1564,4705.5,4705.1,0.02]
[1755106843859,18.6099,4705.5,4705.4,3.3313]
[1755106845686,18.6099,4705.5,4705.4,0.0333]
[1755106845862,18.6099,4705.5,4705.2,0.001]
[1755106845863,0.55,4705.4,4705.2,0.001]
[1755106846286,0.55,4705.4,4705.3,3.298]
[1755106846461,18.20859685,4705.4,4705.2,0.001]
[1755106846655,18.20859685,4705.4,4705.3,3.298]
[1755106846856,0.55,4705.2,4705.1,0.02]
[1755106847051,5.86295568,4705.2,4705.1,0.02]
[1755106847492,21.48085568,4705.2,4705.1,0.02]
[1755106847688,20.92336822,4705.2,4705.1,0.02]
[1755106848597,21.58776822,4705.2,4705.1,3.319]
[1755106848890,21.58776822,4705.2,4704.3,0.0167]
[1755106849097,0.1064,4704.4,4704.3,0.0167]
[1755106849587,14.6064,4704.4,4704.3,0.6884]
[1755106850161,14.6064,4704.4,4704.3,0.0167]
[1755106850467,14.6064,4704.4,4704.3,3.9874]
[1755106850674,14.6064,4704.4,4704.3,4.4253]
[1755106851580,14.6064,4704.4,4704.3,9.5183]
[1755106851894,14.6064,4704.4,4704.3,9.5193]
[1755106852388,0.1064,4704.4,4704.3,9.5193]
[1755106853379,0.30566904,4706.7,4704.3,9.5193]
[1755106853380,0.65038677,4706.7,4704.3,9.5193]
[1755106853557,0.17408239,4706.6,4704.4,1.40606735]
[1755106853764,0.1064,4705.1,4704.5,1.216]
[1755106853969,0.1064,4705.1,4704.6,1.38481066]
[1755106854366,0.1064,4705.1,4704.7,1.1096]
[1755106854694,0.1064,4705.5,4704.9,0.1064]
[1755106855087,0.1064,4705.5,4705.0,1.1096]
[1755106855286,0.1064,4705.5,4705.1,3.298]
[1755106855600,0.1064,4705.5,4705.2,1.1096]
[1755106855988,0.1064,4705.5,4705.3,1.1096]
[1755106856169,0.1064,4706.0,4705.3,1.216]
[1755106856370,0.1064,4706.0,4705.4,1.1096]
[1755106856801,0.1064,4706.0,4705.3,0.1064]
[1755106856987,0.1064,4706.0,4705.5,1.1096]
[1755106857299,0.1064,4706.0,4705.6,1.1096]
[1755106857472,0.1064,4706.0,4705.7,1.1096]
[1755106857797,0.1064,4706.0,4705.8,1.1096]
[1755106857998,0.1064,4706.0,4705.9,3.298]
[1755106858204,0.1064,4706.0,4705.9,4.4076]
[1755106858578,0.1064,4706.0,4705.5,0.6717]
[1755106858889,0.4535,4706.4,4705.6,3.298]
[1755106859063,0.1064,4705.7,4705.6,3.298]
[1755106859268,0.1064,4705.7,4705.6,3.9697]
[1755106859495,0.1064,4705.7,4705.6,4.428]
[1755106860106,0.9954,4707.2,4705.6,4.428]
[1755106860272,0.1064,4705.7,4705.6,3.298]
[1755106860668,0.18236028,4707.1,4705.6,3.298]
[1755106861000,0.4454,4707.2,4705.6,3.298]
[1755106861001,0.1064,4705.9,4705.7,1.0861]
[1755106861294,0.1064,4705.9,4705.8,0.6278]
[1755106861697,0.1064,4705.9,4705.8,3.297]
[1755106862481,0.5518,4705.9,4705.8,3.297]
[1755106863871,0.1064,4705.9,4705.8,3.297]
[1755106864795,0.55,4706.4,4705.8,3.297]
[1755106865003,0.1064,4705.9,4705.8,3.297]
[1755106865912,0.1064,4705.9,4705.8,4.3831]
[1755106868100,0.1064,4705.9,4705.8,9.4751]
[1755106868710,0.1064,4705.9,4705.8,5.092]
[1755106868901,0.1064,4705.9,4705.8,8.388]
[1755106872312,0.1064,4705.9,4705.8,5.092]
[1755106872501,0.5518,4705.9,4705.8,8.388]
[1755106872701,0.22729,4705.9,4705.8,8.388]
[1755106872908,0.1064,4705.9,4705.8,8.388]
[1755106873527,0.1064,4705.9,4705.8,5.7198]
[1755106873732,0.1064,4705.9,4705.8,8.388]
[1755106876638,0.5518,4705.9,4705.8,5.092]
[1755106876834,0.5518,4705.9,4705.8,8.388]
[1755106877019,0.67269,4705.9,4705.8,8.388]
[1755106877840,0.22729,4705.9,4705.8,8.388]
[1755106878005,0.1064,4705.9,4705.8,8.388]
[1755106881808,0.1064,4705.9,4705.8,9.4741]
[1755106882146,0.1064,4705.9,4705.8,9.0158]
[1755106882343,0.1064,4705.9,4705.8,8.388]
[1755106884446,0.1064,4705.9,4705.8,9.4741]
[1755106886323,0.002,4706.4,4705.8,9.4741]
[1755106886531,0.1064,4706.2,4705.9,1.0861]
[1755106886709,0.1064,4706.2,4706.0,4.3811]
[1755106887112,0.1064,4706.2,4706.0,3.295]
[1755106887351,0.1064,4706.2,4706.1,1.0861]
[1755106888329,0.1064,4706.2,4706.1,0.6278]
[1755106888542,0.1064,4706.2,4706.0,3.295]
[1755106888838,14.5,4706.1,4706.0,3.9228]
[1755106890346,14.5,4706.1,4706.0,3.295]
[1755106891649,14.5,4706.1,4706.0,3.947]
[1755106894542,14.5,4706.1,4706.0,3.293]
[1755106894740,14.9415,4706.1,4706.0,3.293]
[1755106895579,17.14035,4706.1,4706.0,3.293]
[1755106896475,16.06825,4706.1,4706.0,3.293]
[1755106896663,14.6064,4706.1,4706.0,3.293]
[1755106897039,14.6064,4706.1,4706.0,3.945]
[1755106897674,14.6064,4706.1,4706.0,3.293]
[1755106897878,14.6064,4706.1,4706.0,4.3946]
[1755106898052,14.6064,4706.1,4706.0,3.293]
[1755106898572,14.6064,4706.1,4706.0,4.3946]
[1755106899244,14.6064,4706.1,4706.0,3.293]
[1755106900959,15.0479,4706.1,4706.0,3.293]
[1755106901155,16.55309,4706.1,4706.0,3.293]
[1755106901664,16.11159,4706.1,4706.0,3.293]
[1755106901853,14.6064,4706.1,4706.0,3.293]
[1755106902176,14.6064,4706.1,4706.0,3.945]
[1755106903484,14.6064,4706.1,4706.0,3.293]
[1755106904590,0.1064,4706.1,4706.0,3.293]
[1755106905678,0.1064,4706.1,4706.0,3.945]
[1755106905984,0.1064,4706.1,4706.0,4.3946]
[1755106906475,0.1064,4706.1,4706.0,3.945]
[1755106907348,0.1064,4706.1,4706.0,4.26875058]
[1755106907549,0.002,4706.4,4706.0,5.09996124]
[1755106907756,0.002,4706.9,4706.3,0.1064]
[1755106908065,0.002,4706.9,4706.4,3.88996124]
[1755106908266,0.002,4706.9,4706.7,0.1064]
[1755106908465,0.002,4706.9,4706.8,3.291]
[1755106908666,0.002,4706.9,4706.8,4.3926]
[1755106910696,0.002,4706.9,4706.7,0.1064]
[1755106910870,0.002,4706.9,4706.8,3.291]
[1755106913982,0.1084,4706.9,4706.8,3.291]
[1755106915079,0.5499,4706.9,4706.8,3.291]
[1755106915279,0.5499,4706.9,4706.8,3.29]
[1755106915687,0.5499,4706.9,4705.9,3.652]
[1755106915882,0.5499,4706.9,4705.7,0.556]
[1755106915883,0.1064,4706.3,4706.0,3.29]
[1755106916694,0.1064,4706.3,4706.0,3.942]
[1755106917396,0.1064,4706.3,4706.0,3.29]
[1755106918096,0.1064,4706.3,4706.0,3.291]
[1755106918975,0.1064,4706.3,4706.1,3.29]
[1755106919360,0.1064,4706.3,4706.0,0.001]
[1755106919567,14.955,4706.2,4706.1,3.289]
[1755106919761,16.46114,4706.2,4706.1,3.289]
[1755106920269,14.955,4706.2,4706.1,3.289]
[1755106920796,14.5,4706.2,4706.1,3.289]
[1755106928100,14.5,4706.2,4706.1,3.288]
[1755106931210,14.6064,4706.2,4706.1,3.288]
[1755106933507,0.1064,4706.2,4706.1,3.8936]
[1755106933685,0.002,4706.9,4706.1,3.8936]
[1755106933686,0.002,4706.9,4706.1,4.60151066]
[1755106933890,0.002,4706.9,4706.5,10.79055253]
[1755106934101,0.1084,4706.9,4706.6,3.288]
[1755106934483,0.1084,4706.9,4706.7,0.6056]
[1755106935005,0.1084,4706.9,4706.6,3.288]
[1755106935207,0.1084,4706.9,4706.8,1.0383]
[1755106935378,0.002,4706.9,4706.8,1.0383]
[1755106935576,0.002,4706.9,4706.8,12.42781377]
[1755106935781,0.002,4706.9,4706.8,12.21046319]
[1755106936281,0.002,4706.9,4706.8,1.41991066]
[1755106938881,0.002,4706.9,4706.8,12.21046319]
[1755106939392,0.002,4706.9,4706.8,15.49746319]
[1755106940703,0.002,4706.9,4706.8,3.286]
[1755106941022,0.5634,4706.9,4706.8,3.286]
[1755106941383,15.0634,4706.9,4706.2,0.1064]
[1755106941583,16.6219268,4706.9,4706.3,3.286]
[1755106941815,0.1064,4706.4,4706.3,3.286]
[1755106942686,0.1064,4706.7,4706.3,15.71381377]
[1755106942892,0.1064,4706.7,4706.4,0.59896124]
[1755106943094,0.1064,4706.7,4706.1,0.1074]
[1755106943315,0.455,4706.7,4706.2,3.286]
[1755106943513,0.1064,4706.4,4706.2,3.286]
[1755106944982,0.5614,4706.4,4706.2,3.286]
[1755106945188,0.1064,4706.4,4706.3,3.286]
[1755106945522,14.6064,4706.4,4706.3,3.286]
[1755106947501,14.6064,4706.4,4706.1,0.001]
[1755106947819,14.5,4706.4,4706.2,3.285]
[1755106948188,0.5614,4706.8,4706.2,3.285]
[1755106948693,14.5,4706.7,4706.2,3.285]
[1755106949117,14.955,4706.7,4706.2,3.285]
[1755106949620,14.5,4706.7,4706.3,0.5866]
[1755106950503,14.9733,4706.7,4706.2,3.285]
[1755106950708,0.4733,4706.6,4706.2,3.285]
[1755106951817,0.1064,4706.8,4706.2,3.285]
[1755106952019,0.1064,4706.8,4706.2,3.8716]
[1755106952325,14.5,4706.7,4706.2,3.8716]
[1755106953691,0.4733,4706.6,4706.2,3.285]
[1755106953896,0.1064,4706.3,4706.1,0.001]
[1755106954097,0.1064,4706.3,4706.2,3.285]
[1755106954321,15.0797,4706.3,4706.2,3.285]
[1755106954522,14.6064,4706.3,4706.2,3.285]
[1755106954822,15.0797,4706.3,4706.2,3.285]
[1755106955120,14.6064,4706.3,4706.1,0.001]
[1755106955307,0.4733,4706.2,4706.1,0.001]
[1755106955508,1.0616,4706.2,4706.1,3.285]
[1755106958000,15.5616,4706.2,4706.1,3.285]
[1755106959826,14.9733,4706.2,4706.1,3.285]
[1755106960017,16.5449429,4706.2,4706.1,3.285]
[1755106960325,16.0716429,4706.2,4706.1,3.285]
[1755106960532,14.5,4706.2,4706.1,3.285]
[1755106961526,14.9733,4706.2,4706.1,3.285]
[1755106961733,15.5616,4706.2,4706.1,3.285]
[1755106962400,14.9733,4706.2,4706.1,3.285]
[1755106965239,17.1332429,4706.2,4706.1,3.285]
[1755106967843,16.5449429,4706.2,4706.1,3.285]
[1755106971053,17.1332429,4706.2,4706.1,0.001]
[1755106971226,17.1332429,4706.2,4706.1,3.284]
[1755106972651,0.55,4706.1,4706.0,0.001]
[1755106972869,6.81815568,4706.1,4706.0,5.092]
[1755106973055,17.71529711,4706.1,4706.0,5.092]
[1755106973234,17.71529711,4706.1,4705.6,0.001]
[1755106973235,0.55,4705.9,4705.6,0.001]
[1755106973434,0.55,4705.9,4705.7,3.283]
[1755106973729,0.1064,4705.7,4705.6,0.001]
[1755106973930,0.81234549,4705.7,4705.6,0.001]
[1755106974130,30.16449802,4705.7,4705.6,0.001]
[1755106974364,32.3710537,4705.7,4705.6,0.001]
[1755106974774,32.72112216,4705.7,4705.6,3.284]
[1755106974941,32.72112216,4705.7,4704.1,0.02]
[1755106974942,3.55,4705.6,4704.1,0.02]
[1755106975144,4.6116,4705.6,4704.1,0.02]
[1755106975350,0.6564,4705.4,4704.1,0.02]
[1755106975595,20.00699877,4705.4,4704.1,0.02]
[1755106975868,21.06859877,4705.4,4704.1,0.02]
[1755106976036,21.06859877,4705.4,4705.3,3.284]
[1755106976238,3.55,4705.3,4704.1,0.02]
[1755106976433,4.6116,4705.3,4704.1,0.02]
[1755106976735,5.29254783,4705.3,4704.1,0.02]
[1755106976939,4.70424783,4705.3,4704.3,0.6033]
[1755106977635,4.70424783,4705.3,4705.2,3.284]
[1755106978277,5.29254783,4705.3,4705.2,3.284]
[1755106978690,0.55,4705.2,4704.3,0.0167]
[1755106978858,0.1064,4704.4,4704.3,0.0167]
[1755106980243,0.6564,4704.4,4704.3,0.0167]
[1755106980446,1.7426,4704.4,4704.3,3.2997]
[1755106980651,0.55,4704.3,4704.1,0.02]
[1755106980982,4.6362,4704.3,4704.1,0.02]
[1755106981186,2.80311255,4704.2,4704.1,0.02]
[1755106981387,3.25321255,4704.2,4704.1,0.02]
[1755106981573,3.25321255,4704.2,4704.1,5.113]
[1755106982072,1.1065,4704.2,4704.1,5.113]
[1755106982458,1.1065,4704.2,4704.1,8.396]
[1755106984290,4.1065,4704.2,4704.1,8.396]
[1755106987736,1.1065,4704.2,4704.1,8.396]
[1755106988031,0.1064,4704.2,4704.1,8.396]
[1755106988229,0.1064,4704.2,4704.1,9.4622]
[1755106988802,0.1064,4704.2,4704.1,8.9874]
[1755106989002,0.1064,4704.2,4704.1,9.4622]
[1755106990134,0.1064,4704.2,4704.1,8.9874]
[1755106990724,0.1064,4704.2,4704.1,9.4622]
[1755106992165,0.1064,4704.2,4704.1,6.1792]
[1755106992351,0.1064,4704.2,4704.1,9.4612]
[1755106994464,0.1064,4704.2,4704.1,8.395]
[1755106995541,0.2257458,4704.2,4704.1,8.395]
[1755106995864,0.1064,4704.2,4704.1,8.395]
[1755106996832,0.1064,4704.2,4704.1,5.113]
[1755106997064,3.5565,4704.2,4704.1,8.376]
[1755106997366,4.7426,4704.2,4704.1,5.094]
[1755106998431,4.7426,4704.2,4704.1,8.376]
[1755106998664,6.35961105,4704.2,4704.1,8.376]
[1755107000134,0.55,4704.1,4703.1,0.021]
[1755107000334,0.1064,4703.2,4703.1,0.021]
[1755107000735,0.1064,4703.2,4703.1,0.6124]
[1755107001371,0.1064,4703.2,4703.1,3.8934]
[1755107001666,0.1064,4703.2,4703.1,9.4622]
[1755107002040,0.1064,4703.2,4703.1,9.73535462]
[1755107003895,0.1064,4703.2,4703.1,10.0591052]
[1755107004178,0.637079,4704.5,4703.1,10.0591052]
[1755107004341,0.002,4705.3,4703.1,10.0591052]
[1755107004342,0.002,4705.3,4703.6,10.79055253]
[1755107004558,0.002,4705.3,4703.7,3.8779052]
[1755107004752,0.002,4704.2,4704.0,10.79055253]
[1755107004995,0.002,4704.2,4703.1,5.115]
[1755107004996,0.002,4704.2,4704.1,15.73465773]
[1755107005299,0.002,4704.2,4704.1,15.84105773]
[1755107005487,0.002,4704.2,4704.1,18.84105773]
[1755107008291,0.002,4704.2,4704.1,4.3472]
[1755107008895,0.002,4704.2,4704.1,4.3462]
[1755107010709,0.002,4704.2,4703.7,11.35975253]
[1755107010892,0.002,4704.2,4703.8,3.28]
[1755107011097,0.002,4704.2,4703.8,4.3234]
[1755107011295,0.002,4704.2,4703.9,0.5692]
[1755107011506,0.1064,4704.0,4703.9,0.5692]
[1755107011687,0.1064,4704.0,4703.9,3.8492]
[1755107011891,0.1064,4704.0,4703.9,4.3234]
[1755107012091,14.6064,4704.0,4703.9,4.3234]
[1755107012780,14.6064,4704.0,4703.9,4.59655462]
[1755107013486,0.1064,4704.0,4703.9,4.59655462]
[1755107015017,0.1064,4704.0,4703.9,0.27315462]
[1755107015215,0.5499,4704.0,4703.9,8.372]
[1755107015587,15.1944951,4704.0,4703.9,8.372]
[1755107016795,15.1944951,4704.0,4703.9,5.093]
[1755107017004,15.1944951,4704.0,4703.9,8.372]
[1755107017805,14.7509951,4704.0,4703.9,5.093]
[1755107018124,15.1944951,4704.0,4703.9,8.372]
[1755107018616,14.7509951,4704.0,4703.9,8.372]
[1755107019679,14.5,4704.0,4703.9,8.372]
[1755107019872,14.5,4704.0,4703.9,9.4154]
[1755107019873,14.6064,4704.0,4703.9,9.4154]
[1755107020274,0.1064,4704.0,4703.9,9.4154]
[1755107020872,0.1064,4704.0,4703.9,9.68855462]
[1755107021073,0.1064,4704.0,4703.9,10.0123052]
[1755107021503,0.1064,4704.0,4703.9,9.68855462]
[1755107023310,0.1064,4704.0,4703.9,12.0634]
[1755107023490,0.002,4704.2,4703.9,12.0634]
[1755107023703,0.1084,4704.2,4704.1,10.79055253]
[1755107023900,0.1084,4704.2,4704.1,3.279]
[1755107024196,0.1084,4704.2,4704.1,4.3224]
[1755107024693,0.002,4704.2,4704.1,15.38610715]
[1755107025204,0.002,4704.2,4704.1,15.70985773]
[1755107025811,0.002,4704.2,4704.1,15.38610715]
[1755107026677,0.002,4704.2,4704.1,12.10710715]
[1755107027111,0.002,4704.2,4704.1,15.38510715]
[1755107027509,0.002,4704.2,4704.1,18.38510715]
[1755107030280,0.002,4704.2,4704.1,3.277]
[1755107030615,0.002,4704.2,4704.1,14.06755253]
[1755107031497,0.002,4704.2,4704.1,19.16055253]
[1755107032714,0.4455,4704.2,4704.1,5.093]
[1755107032888,1.0158,4704.2,4704.1,8.37]
[1755107033306,15.5158,4704.2,4704.1,8.37]
[1755107033609,17.06758,4704.2,4704.1,8.37]
[1755107035585,16.49728,4704.2,4704.1,8.37]
[1755107035897,17.06758,4704.2,4704.1,8.37]
[1755107036505,2.56758,4704.2,4704.1,8.37]
[1755107036821,0.4455,4704.2,4704.1,8.37]
[1755107037021,15.5158,4704.2,4704.1,8.37]
[1755107039089,15.5158,4704.2,4704.1,5.093]
[1755107039290,15.5158,4704.2,4704.1,8.37]
[1755107040014,14.502,4704.2,4704.1,8.37]
[1755107040327,16.10251,4704.2,4704.1,8.37]
[1755107040628,14.6084,4704.2,4704.1,8.37]
[1755107041115,14.6234,4704.2,4704.1,8.37]
[1755107042631,14.6234,4704.2,4704.1,5.093]
[1755107042810,15.0605,4704.2,4704.1,8.37]
[1755107043006,15.0605,4704.2,4704.1,5.093]
[1755107043198,16.56675,4704.2,4704.1,8.37]
[1755107044308,16.56675,4704.2,4704.1,8.369]
[1755107045772,16.56675,4704.2,4704.1,5.093]
[1755107045935,17.13975,4704.2,4704.1,8.369]
[1755107046920,16.56675,4704.2,4704.1,8.369]
[1755107048430,16.12965,4704.2,4704.1,8.369]
[1755107048660,1.62965,4704.2,4704.1,8.369]
[1755107048934,0.1234,4704.2,4704.1,8.369]
[1755107049229,14.6234,4704.2,4704.1,8.369]
[1755107049417,14.6234,4704.2,4704.1,8.9674]
[1755107050209,14.6234,4704.2,4704.1,9.4108]
[1755107050940,0.1234,4704.2,4704.1,9.4108]
[1755107051749,0.017,4704.2,4704.1,8.369]
[1755107052614,0.4541,4704.2,4704.1,8.369]
[1755107054245,0.017,4704.2,4704.1,8.369]
[1755107055013,0.017,4704.2,4704.1,5.093]
[1755107055316,14.517,4704.2,4704.1,8.368]
[1755107057007,0.017,4704.2,4704.1,19.15855253]
[1755107057213,0.017,4704.2,4704.1,20.20035253]
[1755107058755,0.017,4704.2,4704.1,5.093]
[1755107058909,0.017,4704.2,4704.1,8.368]
[1755107060041,0.017,4704.2,4704.1,9.4098]
[1755107060786,0.017,4704.2,4704.1,9.68295462]
[1755107061321,0.017,4704.2,4704.1,10.0067052]
[1755107062153,0.017,4704.2,4704.1,5.094]
[1755107062339,0.017,4704.2,4704.1,8.369]
[1755107064319,0.017,4704.2,4704.1,5.094]
[1755107064516,0.017,4704.2,4704.1,8.368]
[1755107065613,0.4541,4704.2,4704.1,8.368]
[1755107066218,0.4541,4704.2,4704.1,5.094]
[1755107066531,0.017,4704.2,4704.1,8.368]
[1755107068753,0.017,4704.2,4704.1,8.369]
[1755107072366,0.1234,4704.2,4704.1,8.369]
[1755107072729,0.1234,4704.2,4704.1,20.15125253]
[1755107072934,0.017,4704.2,4704.1,20.74815773]
[1755107075261,0.017,4704.2,4704.1,20.42440715]
[1755107075561,0.017,4704.2,4704.1,20.74815773]
[1755107076545,0.017,4704.2,4704.1,5.6573]
[1755107076865,0.017,4704.2,4704.1,8.9313]
[1755107077066,0.017,4704.2,4704.1,8.369]
[1755107077267,0.1234,4704.2,4704.1,8.369]
[1755107078757,0.1234,4704.2,4704.1,8.368]
[1755107079434,0.587,4704.2,4704.1,8.368]
[1755107081276,0.1234,4704.2,4704.1,8.368]
[1755107081783,0.587,4704.2,4704.1,8.368]
[1755107082848,0.1234,4704.2,4704.1,8.368]
[1755107084849,0.1234,4704.2,4704.1,8.9303]
[1755107085049,0.017,4704.2,4704.1,20.15025253]
[1755107085983,0.017,4704.2,4704.1,20.42340715]
[1755107086175,0.017,4704.2,4704.1,20.85355773]
[1755107087993,0.017,4704.2,4704.1,20.52980715]
[1755107088289,0.017,4704.2,4704.1,8.368]
[1755107088592,0.017,4704.2,4704.1,19.15855253]
[1755107088789,0.017,4704.2,4704.1,19.72085253]
[1755107089290,0.017,4704.2,4704.1,20.15025253]
[1755107091699,0.017,4704.2,4704.1,9.63285462]
[1755107091862,0.017,4704.2,4704.1,9.20345462]
[1755107092391,0.017,4704.2,4704.1,6.35985462]
[1755107092583,0.017,4704.2,4704.1,9.63185462]
[1755107094977,0.017,4704.2,4704.1,5.36815462]
[1755107095293,0.017,4704.2,4704.1,5.095]
[1755107095465,0.017,4704.2,4704.1,8.367]
[1755107096283,0.017,4704.2,4704.1,19.15755253]
[1755107097196,0.017,4704.2,4704.1,19.71985253]
[1755107097697,0.017,4704.2,4704.1,20.14925253]
[1755107097896,0.017,4704.2,4704.1,20.74615773]
[1755107098104,0.017,4704.2,4704.1,20.42240715]
[1755107101301,0.017,4704.2,4704.1,19.99300715]
[1755107102411,0.017,4704.2,4704.1,20.31675773]
[1755107102614,0.017,4704.2,4704.1,20.78015773]
[1755107102982,0.017,4704.2,4704.1,19.99300715]
[1755107104277,0.017,4704.2,4704.1,19.99200715]
[1755107104489,0.017,4704.2,4704.1,20.45540715]
[1755107104691,0.017,4704.2,4704.1,20.77915773]
[1755107105515,0.002,4704.6,4704.2,3.55]
[1755107105717,0.002,4705.2,4704.2,3.55]
[1755107105718,0.002,4705.2,4705.1,10.79055253]
[1755107105915,0.002,4705.2,4705.1,14.76485773]
[1755107106116,0.002,4705.2,4705.1,15.78915773]
[1755107106710,0.002,4705.2,4705.1,18.78915773]
[1755107106912,0.002,4706.5,4705.2,3.55]
[1755107107115,0.002,4706.5,4705.8,0.55]
[1755107107324,0.002,4706.5,4706.3,10.79055253]
[1755107107623,0.002,4706.5,4706.3,14.76485773]
[1755107107992,0.002,4706.5,4706.3,15.78915773]
[1755107108391,0.002,4706.5,4706.3,16.33915773]
[1755107108886,0.002,4706.5,4706.3,16.23275773]
[1755107109090,0.002,4707.5,4706.4,1.1469052]
[1755107109311,0.002,4707.5,4707.3,10.79055253]
[1755107109502,0.002,4707.5,4707.3,15.31385773]
[1755107109703,0.002,4707.5,4707.3,16.33815773]
[1755107109903,0.002,4707.5,4707.4,1.1469052]
[1755107110099,0.002,4707.8,4707.4,2.19244834]
[1755107110304,0.002,4707.8,4707.7,10.79055253]
[1755107110501,0.002,4707.8,4707.7,17.49070311]
[1755107110843,0.002,4707.8,4707.7,31.54517015]
[1755107110988,0.002,4707.8,4707.7,31.70766562]
[1755107111195,0.002,4707.8,4707.7,28.88126562]
[1755107111386,0.002,4707.8,4707.7,35.17682024]
[1755107111588,0.002,4707.8,4707.7,40.26782024]
[1755107111810,0.002,4707.8,4707.7,40.10532477]
[1755107113309,0.002,4707.8,4707.7,37.6206771]
[1755107115524,0.002,4707.8,4707.7,34.29692652]
[1755107115716,0.002,4707.8,4707.7,34.59369789]
[1755107116201,0.002,4707.8,4707.7,29.50269789]
[1755107118238,0.002,4707.8,4707.7,32.50269789]
[1755107118627,0.002,4707.8,4707.7,35.63909789]
[1755107119221,0.002,4707.8,4707.7,32.50269789]
[1755107119431,0.002,4707.8,4707.7,58.19589189]
[1755107120044,0.002,4707.8,4707.7,46.00678189]
[1755107120215,0.002,4707.8,4707.7,38.74142289]
[1755107120539,0.002,4707.8,4707.7,43.41186689]
[1755107120716,0.002,4707.8,4707.7,43.41086689]
[1755107121333,0.002,4707.8,4707.7,32.50169789]
[1755107121536,0.002,4707.8,4707.7,55.55201489]
[1755107121738,0.002,4707.8,4707.7,54.20133489]
[1755107121934,0.002,4707.8,4707.7,50.74263289]
[1755107122145,0.002,4707.8,4707.7,49.89095589]
[1755107122314,0.002,4707.8,4707.7,44.79583489]
[1755107122509,0.002,4707.8,4707.7,43.41350289]
[1755107122845,0.002,4707.8,4707.7,41.31750289]
[1755107123140,0.002,4707.8,4707.7,40.76750289]
[1755107123353,0.002,4707.8,4707.7,28.85510489]
[1755107123544,0.002,4707.8,4707.7,36.45908752]
[1755107123743,0.002,4708.3,4708.2,0.55]
[1755107123924,0.002,4708.3,4708.2,4.51356552]
[1755107124109,0.002,4708.3,4708.2,9.61178399]
[1755107124314,0.002,4708.3,4708.2,9.82408399]
[1755107124611,0.002,4708.3,4708.2,15.85562899]
[1755107125041,0.002,4708.9,4708.4,0.7623]
[1755107125228,0.002,4708.9,4708.8,27.37071957]
[1755107125547,0.002,4708.9,4708.8,31.31304556]
[1755107125733,0.002,4708.9,4708.8,32.33734556]
[1755107128936,0.002,4708.9,4708.8,31.01527419]
[1755107129249,1.0367,4708.9,4708.8,3.3714]
[1755107129614,1.0367,4708.9,4708.8,0.1064]
[1755107129816,1.0367,4708.9,4707.7,0.084808]
[1755107130047,1.0468,4708.8,4708.6,0.1064]
[1755107130216,1.0468,4708.8,4707.7,0.084808]
[1755107130413,1.1532,4708.7,4708.1,0.1064]
[1755107130637,1.0468,4708.6,4708.2,3.265]
[1755107130829,1.0468,4708.5,4708.3,3.265]
[1755107131029,1.0468,4708.4,4708.1,0.1064]
[1755107131348,0.002,4708.9,4707.0,0.27315462]
[1755107131349,1.0468,4708.3,4708.2,3.265]
[1755107131651,1.0468,4708.3,4708.2,8.351]
[1755107131652,1.1532,4708.3,4708.2,8.351]
[1755107131824,0.5774,4708.3,4708.2,8.351]
[1755107132027,1.0468,4708.3,4708.2,8.62415462]
[1755107132973,1.0468,4708.3,4708.2,8.351]